fUSD/lending_fUSD_20260513
["ID","MTS","AMOUNT","RATE_DAILY","PERIOD"]
[422149032,1778622639000,-150.0,0.00014986,2]
[422149033,1778622639000,-150.0,0.00014986,2]
[422149035,1778622639000,-177.0614353,0.00014986,2]
[422149034,1778622639000,-153.7308558,0.00014986,2]
[422149022,1778622639000,-566.82305573,0.000149,2]
[422149010,1778622639000,-150.0,0.00014687,2]
[422149006,1778622639000,-150.0,0.00014653,2]
[422148988,1778622639000,-150.0,0.00014387,2]
[422148975,1778622639000,-150.0,0.00014154,2]
[422148977,1778622639000,-5544.25699027,0.000142,2]
[422148980,1778622639000,-150.0,0.00014237,2]
[422148979,1778622639000,-150.0,0.00014237,2]
[422148978,1778622639000,-150.0,0.00014237,2]
[422148982,1778622639000,-4613.41613634,0.000143,2]
[422148983,1778622639000,-168.73,0.00014317,2]
[422148981,1778622639000,-150.0,0.00014281,2]
[422148984,1778622639000,-150.0,0.0001432,2]
[422148987,1778622639000,-150.0,0.00014387,2]
[422148986,1778622639000,-150.0,0.00014369,2]
[422148985,1778622639000,-150.0,0.00014362,2]
[422148989,1778622639000,-5544.25699027,0.00014433,2]
[422149005,1778622639000,-150.0,0.00014634,2]
[422148976,1778622639000,-150.0,0.00014193,2]
[422148992,1778622639000,-150.0,0.00014487,2]
[422149004,1778622639000,-150.0,0.00014612,2]
[422149003,1778622639000,-4613.41613634,0.000146,2]
[422149002,1778622639000,-33160.7925,0.000146,2]
[422149001,1778622639000,-150.0,0.00014546,2]
[422148999,1778622639000,-1324.75,0.00014504,2]
[422148990,1778622639000,-150.0,0.00014457,2]
[422148998,1778622639000,-5522.86,0.00014504,2]
[422148997,1778622639000,-644.01,0.000145,2]
[422148996,1778622639000,-516.94609672,0.00014497,2]
[422148993,1778622639000,-150.0,0.00014487,2]
[422148995,1778622639000,-329.07683996,0.00014497,2]
[422148994,1778622639000,-150.0,0.00014487,2]
[422148991,1778622639000,-2351.0,0.00014486,2]
[422149000,1778622639000,-9999.99,0.00014504,2]
[422149038,1778622640000,-300.0,0.00014999,2]
[422149040,1778622640000,-300.0,0.00014999,2]
[422149039,1778622640000,-666.0,0.00014999,2]
[422149042,1778622640000,-3562.06698633,0.00015,2]
[422149044,1778622640000,-514.65386803,0.00015,2]
[422149045,1778622640000,-879.54028418,0.00015,2]
[422149043,1778622640000,-534.27969911,0.00015,2]
[422149041,1778622640000,-5697486.95713395,0.00015,2]
[422149064,1778622642000,-665.86939559,0.00015,2]
[422149063,1778622642000,-534.54157768,0.00015,2]
[422149062,1778622642000,-662.66163375,0.00015,2]
[422149066,1778622643000,-7337.39113383,0.00015,2]
[422149065,1778622643000,-576.10656518,0.00015,2]
[422149069,1778622645000,-341.68629724,0.00015,2]
[422149070,1778622645000,-11078.38042798,0.00015,2]
[422149073,1778622646000,-723.27390214,0.00015,2]
[422149071,1778622646000,-1180.95304529,0.00015,2]
[422149072,1778622646000,-1734.61950838,0.00015,2]
[422149087,1778623374000,1000.0,0.00041287,120]
[422149088,1778623375000,1000.0,0.00041287,120]
[422149089,1778623377000,1000.0,0.00041287,120]
[422149090,1778623378000,1000.0,0.00041287,120]
[422149091,1778623379000,1000.0,0.00041287,120]
[422149093,1778623390000,1197.0,0.00041287,120]
[422149094,1778623477000,500.0,0.00041287,120]
[422149098,1778623478000,500.0,0.00041287,120]
[422149097,1778623478000,500.0,0.00041287,120]
[422149096,1778623478000,500.0,0.00041287,120]
[422149095,1778623478000,500.0,0.00041287,120]
[422149102,1778623479000,500.0,0.00041287,120]
[422149101,1778623479000,500.0,0.00041287,120]
[422149100,1778623479000,500.0,0.00041287,120]
[422149099,1778623479000,500.0,0.00041287,120]
[422149106,1778623480000,500.0,0.00041287,120]
[422149105,1778623480000,500.0,0.00041287,120]
[422149104,1778623480000,500.0,0.00041287,120]
[422149103,1778623480000,500.0,0.00041287,120]
[422149107,1778623481000,500.0,0.00041287,120]
[422149108,1778623481000,500.0,0.00041287,120]
[422149111,1778623481000,500.0,0.00041287,120]
[422149110,1778623481000,500.0,0.00041287,120]
[422149109,1778623481000,500.0,0.00041287,120]
[422149113,1778623482000,499.95120973,0.00041287,120]
[422149112,1778623482000,500.0,0.00041287,120]
[422149115,1778623531000,250.27,0.000107,2]
[422149116,1778623531000,250.27,0.000107,2]
[422149114,1778623531000,250.27,0.000107,2]
[422149117,1778623610000,-198.91594909,0.00010645,2]
[422149124,1778623689000,156.99,8.447e-05,2]
[422149123,1778623689000,127.42,7.762e-05,2]
[422149122,1778623689000,29.57,7.762e-05,2]
[422149121,1778623689000,156.99,7.076e-05,2]
[422149120,1778623689000,63.71,6.391e-05,2]
[422149119,1778623689000,93.28,6.391e-05,2]
[422149118,1778623689000,156.99,5.706e-05,2]
[422149126,1778623690000,156.99,9.817e-05,2]
[422149125,1778623690000,156.99,9.132e-05,2]
[422149129,1778623831000,-899.09042,0.00010387,2]
[422149131,1778623831000,-30.05885066,0.0001044,2]
[422149130,1778623831000,-1052.78168122,0.0001044,2]
[422149128,1778623831000,-859.784997,0.00010387,2]
[422149132,1778623832000,-156.99,0.00010503,2]
[422149134,1778623832000,-163.34,0.00010645,2]
[422149136,1778623832000,-190.01670168,0.00010647,2]
[422149133,1778623832000,-1711.66,0.00010537,2]
[422149135,1778623832000,-190.01670168,0.00010646,2]
[422149137,1778623832000,-150.0,0.00010698,2]
[422149144,1778623832000,-17304.03931655,0.000107,2]
[422149143,1778623832000,-94588.90458254,0.000107,2]
[422149138,1778623832000,-1000.0,0.00010699,2]
[422149139,1778623832000,-300.0,0.00010699,2]
[422149149,1778623832000,-991.04737298,0.000107,2]
[422149150,1778623832000,-785.81555945,0.000107,2]
[422149148,1778623832000,-1271.14161176,0.000107,2]
[422149147,1778623832000,-1605.99198305,0.000107,2]
[422149146,1778623832000,-8030.85310992,0.000107,2]
[422149142,1778623832000,-1200.0,0.00010699,2]
[422149140,1778623832000,-300.0,0.00010699,2]
[422149141,1778623832000,-300.0,0.00010699,2]
[422149145,1778623832000,-74053.53472636,0.000107,2]
[422149186,1778623838000,-1536.85,0.00012087,2]
[422149176,1778623838000,-999.99,0.00012087,2]
[422149177,1778623838000,-1365.04,0.00012087,2]
[422149183,1778623838000,-9999.99,0.00012087,2]
[422149180,1778623838000,-328.68,0.00012087,2]
[422149182,1778623838000,-5522.86,0.00012087,2]
[422149178,1778623838000,-1215.06,0.00012087,2]
[422149184,1778623838000,-150.99,0.00012087,2]
[422149179,1778623838000,-4104.55,0.00012087,2]
[422149190,1778623838000,-61607.49,0.00012087,2]
[422149196,1778623838000,-500.0,0.00012087,2]
[422149198,1778623838000,-191.39,0.0001211,2]
[422149199,1778623838000,-13754.24558226,0.00012215,2]
[422149188,1778623838000,-9999.99,0.00012087,2]
[422149185,1778623838000,-299.99,0.00012087,2]
[422149194,1778623838000,-4999.99,0.00012087,2]
[422149201,1778623838000,-18886.50784166,0.00012215,2]
[422149203,1778623838000,-1822.46948356,0.00012299,2]
[422149205,1778623838000,-7369.21205918,0.00012299,2]
[422149212,1778623838000,-354.13332855,0.00012361,2]
[422149187,1778623838000,-6056.41,0.00012087,2]
[422149174,1778623838000,-1089.65,0.00011935,2]
[422149172,1778623838000,-189.02,0.0001179,2]
[422149168,1778623838000,-13754.24558226,0.00011768,2]
[422149152,1778623838000,-264.15,0.00010763,2]
[422149151,1778623838000,-225530.0756896,0.000107,2]
[422149157,1778623838000,-13754.24558227,0.00011099,2]
[422149158,1778623838000,-156.99,0.00011188,2]
[422149154,1778623838000,-164.83,0.00010932,2]
[422149153,1778623838000,-261923.98,0.00010829,2]
[422149155,1778623838000,-150.0,0.00010959,2]
[422149156,1778623838000,-18886.50784167,0.00011099,2]
[422149159,1778623838000,-13754.24558226,0.0001132,2]
[422149162,1778623838000,-1822.46948357,0.00011668,2]
[422149160,1778623838000,-18886.50784166,0.0001132,2]
[422149163,1778623838000,-152.0,0.00011689,2]
[422149164,1778623838000,-255.0,0.00011736,2]
[422149161,1778623838000,-200.0,0.00011462,2]
[422149165,1778623838000,-409.0,0.00011761,2]
[422149167,1778623838000,-420.0,0.00011761,2]
[422149171,1778623838000,-177.69,0.0001179,2]
[422149169,1778623838000,-18886.50784166,0.00011768,2]
[422149207,1778623838000,-1652.66413094,0.000123,2]
[422149170,1778623838000,-1680.0,0.00011769,2]
[422149173,1778623838000,-164.83,0.00011834,2]
[422149175,1778623838000,-1822.46948356,0.00011984,2]
[422149210,1778623838000,-229.07,0.00012329,2]
[422149181,1778623838000,-24999.99,0.00012087,2]
[422149211,1778623838000,-190.01670168,0.00012338,2]
[422149240,1778623838000,-13754.24558226,0.00012663,2]
[422149241,1778623838000,-18886.50784166,0.00012663,2]
[422149243,1778623838000,-164.83,0.00012736,2]
[422149242,1778623838000,-214.86625456,0.00012706,2]
[422149244,1778623838000,-433.0,0.0001287,2]
[422149249,1778623838000,-177.69,0.000131,2]
[422149258,1778623838000,-150.0,0.00013488,2]
[422149248,1778623838000,-2351.0,0.00012946,2]
[422149259,1778623838000,-150.0,0.00013488,2]
[422149251,1778623838000,-13754.24558226,0.0001311,2]
[422149250,1778623838000,-354.13332855,0.000131,2]
[422149260,1778623838000,-150.0,0.00013488,2]
[422149253,1778623838000,-500.0,0.00013183,2]
[422149255,1778623838000,-503.68627816,0.00013457,2]
[422149254,1778623838000,-189.02,0.00013264,2]
[422149252,1778623838000,-18886.50784166,0.0001311,2]
[422149256,1778623838000,-2247.0,0.00013467,5]
[422149218,1778623838000,-1500000.0,0.00012399,2]
[422149263,1778623838000,-516.94609672,0.00013488,2]
[422149261,1778623838000,-150.0,0.00013488,2]
[422149262,1778623838000,-397.84647269,0.00013488,2]
[422149239,1778623838000,-2000.0,0.0001266,2]
[422149246,1778623838000,-500.0,0.00012909,2]
[422149257,1778623838000,-150.0,0.00013488,2]
[422149238,1778623838000,-500.0,0.00012635,2]
[422149247,1778623838000,-587.0,0.00012928,2]
[422149215,1778623838000,-500.0,0.00012371,2]
[422149213,1778623838000,-500.0,0.00012361,2]
[422149214,1778623838000,-167.27,0.00012365,2]
[422149217,1778623838000,-981.2309,0.00012399,2]
[422149216,1778623838000,-1009345.0002,0.00012371,2]
[422149230,1778623838000,-177.69,0.00012445,2]
[422149220,1778623838000,-5000.0,0.000124,2]
[422149231,1778623838000,-7696.0,0.00012466,2]
[422149233,1778623838000,-166.177,0.0001247,2]
[422149232,1778623838000,-2060.969,0.0001247,2]
[422149209,1778623838000,-178.57182399,0.000123,2]
[422149226,1778623838000,-1845.14258797,0.00012436,2]
[422149224,1778623838000,-2500.0,0.000124,2]
[422149245,1778623838000,-9999.99,0.00012893,2]
[422149236,1778623838000,-5354.09115291,0.00012571,2]
[422149229,1778623838000,-151.08590079,0.00012438,2]
[422149235,1778623838000,-1119.1141549,0.00012499,3]
[422149234,1778623838000,-634.72261674,0.00012471,2]
[422149219,1778623838000,-2000.0,0.000124,2]
[422149222,1778623838000,-11587.125,0.000124,2]
[422149237,1778623838000,-691.67327936,0.00012593,2]
[422149289,1778623839000,-150.0,0.00013803,2]
[422149295,1778623839000,-150.0,0.00013987,2]
[422149288,1778623839000,-579.61,0.000138,2]
[422149293,1778623839000,-150.0,0.00013961,2]
[422149290,1778623839000,-166.66,0.00013836,2]
[422149291,1778623839000,-150.0,0.00013862,2]
[422149286,1778623839000,-691.67327936,0.00013747,2]
[422149292,1778623839000,-150.0,0.00013882,2]
[422149294,1778623839000,-166.66,0.00013973,2]
[422149297,1778623839000,-13754.24558226,0.00014005,2]
[422149296,1778623839000,-250.0,0.00014,2]
[422149298,1778623839000,-18886.50784166,0.00014005,2]
[422149300,1778623839000,-166.66,0.0001411,2]
[422149301,1778623839000,-150.0,0.00014119,2]
[422149302,1778623839000,-736.0,0.00014121,2]
[422149287,1778623839000,-177.69,0.00013755,2]
[422149311,1778623839000,-150.0,0.00014355,2]
[422149299,1778623839000,-150.0,0.0001404,2]
[422149283,1778623839000,-200.0,0.00013699,2]
[422149273,1778623839000,-500.0,0.00013698,2]
[422149285,1778623839000,-150.0,0.00013724,2]
[422149312,1778623839000,-166.66,0.00014384,2]
[422149270,1778623839000,-150.0,0.00013645,2]
[422149269,1778623839000,-178.57182397,0.000136,2]
[422149267,1778623839000,-7369.21205916,0.000136,2]
[422149266,1778623839000,-150.0,0.00013567,2]
[422149264,1778623839000,-13754.24558226,0.00013558,2]
[422149268,1778623839000,-1652.66413094,0.000136,2]
[422149271,1778623839000,-1845.14258797,0.00013668,2]
[422149284,1778623839000,-166.66,0.00013699,2]
[422149272,1778623839000,-500.0,0.00013698,2]
[422149276,1778623839000,-500.0,0.00013698,2]
[422149277,1778623839000,-500.0,0.00013698,2]
[422149278,1778623839000,-500.0,0.00013698,2]
[422149275,1778623839000,-500.0,0.00013698,2]
[422149279,1778623839000,-500.0,0.00013698,2]
[422149281,1778623839000,-500.0,0.00013698,2]
[422149280,1778623839000,-500.0,0.00013698,2]
[422149282,1778623839000,-500.0,0.00013698,2]
[422149274,1778623839000,-500.0,0.00013698,2]
[422149303,1778623839000,-150.0,0.00014198,2]
[422149265,1778623839000,-18886.50784166,0.00013558,2]
[422149310,1778623839000,-350.0,0.00014322,2]
[422149333,1778623839000,-598.887995,0.000147,2]
[422149330,1778623839000,-178902.3256207,0.00014625,2]
[422149331,1778623839000,-150.0,0.00014671,2]
[422149332,1778623839000,-340.463255,0.000147,2]
[422149334,1778623839000,-189.02,0.00014738,2]
[422149336,1778623839000,-500.0,0.00014767,2]
[422149340,1778623839000,-13754.24558226,0.000149,2]
[422149337,1778623839000,-150.0,0.00014829,2]
[422149329,1778623839000,-9760.2457116,0.00014625,2]
[422149347,1778623839000,-290.68953586,0.00014908,2]
[422149343,1778623839000,-7369.21205916,0.000149,2]
[422149344,1778623839000,-1652.66413094,0.000149,2]
[422149338,1778623839000,-2000.0,0.0001488,2]
[422149341,1778623839000,-18886.50784166,0.000149,2]
[422149345,1778623839000,-178.57182397,0.000149,2]
[422149342,1778623839000,-691.67327936,0.000149,2]
[422149348,1778623839000,-2000.0,0.0001492,2]
[422149304,1778623839000,-823.0,0.0001421,2]
[422149339,1778623839000,-1845.14258797,0.000149,2]
[422149326,1778623839000,-59772.4235537,0.00014625,2]
[422149346,1778623839000,-150.0,0.00014907,2]
[422149327,1778623839000,-21967.4734858,0.00014625,2]
[422149306,1778623839000,-3292.0,0.0001424,2]
[422149328,1778623839000,-2698.8711551,0.00014625,2]
[422149308,1778623839000,-166.66,0.00014247,2]
[422149305,1778623839000,-150.0,0.00014237,2]
[422149307,1778623839000,-2000.0,0.00014242,2]
[422149313,1778623839000,-177.69,0.0001441,2]
[422149314,1778623839000,-150.0,0.00014434,2]
[422149315,1778623839000,-13754.24558226,0.00014453,2]
[422149321,1778623839000,-4833.95,0.00014497,2]
[422149309,1778623839000,-150.0,0.00014276,2]
[422149316,1778623839000,-18886.50784166,0.00014453,2]
[422149323,1778623839000,-150.0,0.00014592,2]
[422149320,1778623839000,-2254.66,0.00014497,2]
[422149317,1778623839000,-150.0,0.00014487,2]
[422149319,1778623839000,-541.3,0.00014497,2]
[422149322,1778623839000,-150.0,0.00014513,2]
[422149325,1778623839000,-7254.0451615,0.00014625,2]
[422149318,1778623839000,-2509.12,0.00014497,2]
[422149335,1778623839000,-150.0,0.0001475,2]
[422149324,1778623839000,-150.0,0.00014612,2]
[422149393,1778623840000,-2000.0,0.00015,2]
[422149396,1778623840000,-170.20796659,0.00015,2]
[422149392,1778623840000,-151.0,0.00015,2]
[422149402,1778623840000,-151.0,0.00015,2]
[422149398,1778623840000,-557.314988,0.00015,2]
[422149385,1778623840000,-151.0,0.00015,2]
[422149387,1778623840000,-212.986392,0.00015,2]
[422149386,1778623840000,-151.0,0.00015,2]
[422149384,1778623840000,-1036.23103,0.00015,2]
[422149395,1778623840000,-170.0,0.00015,2]
[422149388,1778623840000,-212.986392,0.00015,2]
[422149391,1778623840000,-151.0,0.00015,2]
[422149397,1778623840000,-557.314988,0.00015,2]
[422149404,1778623840000,-177.69,0.00015065,2]
[422149394,1778623840000,-2000.0,0.00015,2]
[422149399,1778623840000,-557.314988,0.00015,2]
[422149401,1778623840000,-151.0,0.00015,2]
[422149400,1778623840000,-557.314988,0.00015,2]
[422149405,1778623840000,-570.12,0.00015068,2]
[422149415,1778623840000,-350.0,0.00015329,2]
[422149417,1778623840000,-200.0,0.00015455,2]
[422149416,1778623840000,-514.73554189,0.000154,2]
[422149406,1778623840000,-448.648598,0.00015068,2]
[422149411,1778623840000,-200.0,0.0001515,2]
[422149412,1778623840000,-1517.64,0.000153,2]
[422149409,1778623840000,-448.648598,0.00015068,2]
[422149383,1778623840000,-1036.23103,0.00015,2]
[422149403,1778623840000,-2000.0,0.0001502,2]
[422149381,1778623840000,-1036.23103,0.00015,2]
[422149356,1778623840000,-300.0,0.00014999,2]
[422149378,1778623840000,-1000.0,0.00015,2]
[422149349,1778623840000,-697.47427066,0.00014945,2]
[422149360,1778623840000,-300.0,0.00014999,2]
[422149352,1778623840000,-150.0,0.00014986,2]
[422149351,1778623840000,-150.0,0.00014986,2]
[422149354,1778623840000,-177.0614353,0.00014986,2]
[422149357,1778623840000,-666.0,0.00014999,2]
[422149353,1778623840000,-150.0,0.00014986,2]
[422149355,1778623840000,-354.13332855,0.0001499,2]
[422149350,1778623840000,-2000.0,0.0001497,2]
[422149408,1778623840000,-448.648598,0.00015068,2]
[422149362,1778623840000,-2055450.36418919,0.00015,2]
[422149364,1778623840000,-427.62964272,0.00015,2]
[422149368,1778623840000,-200.0,0.00015,2]
[422149380,1778623840000,-12035400.26550722,0.00015,2]
[422149366,1778623840000,-104080.34183508,0.00015,7]
[422149371,1778623840000,-2075.42963494,0.00015,2]
[422149372,1778623840000,-3131.6497458,0.00015,2]
[422149369,1778623840000,-200.0,0.00015,2]
[422149367,1778623840000,-2000.0,0.00015,2]
[422149377,1778623840000,-1000.0,0.00015,2]
[422149376,1778623840000,-1000.0,0.00015,2]
[422149373,1778623840000,-1000.0,0.00015,2]
[422149374,1778623840000,-1000.0,0.00015,2]
[422149375,1778623840000,-1000.0,0.00015,2]
[422149379,1778623840000,-801.19908054,0.00015,2]
[422149390,1778623840000,-212.986392,0.00015,2]
[422149389,1778623840000,-212.986392,0.00015,2]
[422149382,1778623840000,-1036.23103,0.00015,2]
[422149370,1778623840000,-1348734.64259855,0.00015,2]
[422149413,1778623840000,-200.0,0.00015301,2]
[422149407,1778623840000,-448.648598,0.00015068,2]
[422149410,1778623840000,-200.0,0.0001515,2]
[422149450,1778623840000,-151.0,0.00016345,2]
[422149449,1778623840000,-151.0,0.00016345,2]
[422149446,1778623840000,-151.0,0.00016345,2]
[422149464,1778623840000,-570.12,0.00016438,2]
[422149454,1778623840000,-151.0,0.00016345,2]
[422149465,1778623840000,-1154.057842,0.00016438,2]
[422149453,1778623840000,-151.0,0.00016345,2]
[422149456,1778623840000,-151.0,0.00016345,2]
[422149455,1778623840000,-151.0,0.00016345,2]
[422149461,1778623840000,-177.69,0.00016375,2]
[422149457,1778623840000,-151.0,0.00016345,2]
[422149463,1778623840000,-367.56472386,0.00016438,2]
[422149458,1778623840000,-151.0,0.00016345,2]
[422149451,1778623840000,-151.0,0.00016345,2]
[422149462,1778623840000,-500.0,0.00016411,2]
[422149459,1778623840000,-151.0,0.00016345,2]
[422149466,1778623840000,-1154.057842,0.00016438,2]
[422149468,1778623840000,-1154.057842,0.00016438,2]
[422149477,1778623840000,-2005.9555727,0.00016893,2]
[422149467,1778623840000,-1154.057842,0.00016438,2]
[422149474,1778623840000,-1089.65,0.00016709,2]
[422149472,1778623840000,-2165.09040933,0.000165,2]
[422149469,1778623840000,-151.0,0.00016438,2]
[422149470,1778623840000,-151.0,0.00016438,2]
[422149475,1778623840000,-184.49,0.00016712,2]
[422149471,1778623840000,-155.0,0.00016499,2]
[422149414,1778623840000,-200.0,0.00015301,2]
[422149473,1778623840000,-579.61,0.000165,2]
[422149460,1778623840000,-1934.38338737,0.00016345,2]
[422149452,1778623840000,-151.0,0.00016345,2]
[422149476,1778623840000,-229.07,0.00016767,2]
[422149448,1778623840000,-151.0,0.00016345,2]
[422149447,1778623840000,-151.0,0.00016345,2]
[422149420,1778623840000,-1236.6538261,0.000155,2]
[422149421,1778623840000,-152.0,0.00015569,2]
[422149429,1778623840000,-350.0,0.00015818,3]
[422149428,1778623840000,-2268.87344491,0.00015807,2]
[422149424,1778623840000,-1152.0,0.0001562,2]
[422149426,1778623840000,-350.0,0.00015666,2]
[422149422,1778623840000,-200.0,0.00015609,2]
[422149419,1778623840000,-1252.0,0.00015491,2]
[422149425,1778623840000,-4609.0,0.00015664,2]
[422149427,1778623840000,-177.69,0.0001572,2]
[422149423,1778623840000,-200.0,0.00015609,2]
[422149431,1778623840000,-8973.73620785,0.00015989,2]
[422149441,1778623840000,-151.0,0.00016345,2]
[422149418,1778623840000,-200.0,0.00015455,2]
[422149433,1778623840000,-2800.50485724,0.0001611,15]
[422149445,1778623840000,-151.0,0.00016345,2]
[422149444,1778623840000,-151.0,0.00016345,2]
[422149443,1778623840000,-151.0,0.00016345,2]
[422149442,1778623840000,-151.0,0.00016345,2]
[422149430,1778623840000,-2000.0,0.00015825,2]
[422149439,1778623840000,-200.0,0.0001634,2]
[422149440,1778623840000,-151.0,0.00016345,2]
[422149437,1778623840000,-152.0,0.00016288,2]
[422149438,1778623840000,-152.0,0.00016288,2]
[422149434,1778623840000,-189.02,0.00016211,2]
[422149435,1778623840000,-500.0,0.00016219,2]
[422149432,1778623840000,-300.0,0.00016,2]
[422149436,1778623840000,-5040.93025853,0.0001627,2]
[422149532,1778623841000,-500.0,0.00019178,2]
[422149518,1778623841000,-3000.0,0.00019178,2]
[422149515,1778623841000,-3629.0,0.00019121,2]
[422149516,1778623841000,-930.0,0.00019121,2]
[422149509,1778623841000,-4190.0,0.00019,2]
[422149519,1778623841000,-500.0,0.00019178,2]
[422149517,1778623841000,-528.0,0.00019178,2]
[422149522,1778623841000,-500.0,0.00019178,2]
[422149512,1778623841000,-363.71994372,0.0001901,7]
[422149508,1778623841000,-2000.0,0.0001899,2]
[422149511,1778623841000,-513.32921307,0.00019,2]
[422149514,1778623841000,-1223.0,0.00019121,2]
[422149527,1778623841000,-500.0,0.00019178,2]
[422149520,1778623841000,-500.0,0.00019178,2]
[422149531,1778623841000,-500.0,0.00019178,2]
[422149534,1778623841000,-500.0,0.00019178,2]
[422149526,1778623841000,-500.0,0.00019178,2]
[422149530,1778623841000,-500.0,0.00019178,2]
[422149525,1778623841000,-500.0,0.00019178,2]
[422149528,1778623841000,-500.0,0.00019178,2]
[422149523,1778623841000,-500.0,0.00019178,2]
[422149533,1778623841000,-500.0,0.00019178,2]
[422149535,1778623841000,-500.0,0.00019178,2]
[422149524,1778623841000,-500.0,0.00019178,2]
[422149510,1778623841000,-393.00895841,0.00019,2]
[422149521,1778623841000,-500.0,0.00019178,2]
[422149506,1778623841000,-200.0,0.000189,6]
[422149488,1778623841000,-1237.39950744,0.0001789,2]
[422149505,1778623841000,-2258.0,0.00018874,2]
[422149479,1778623841000,-214.86625456,0.00017,7]
[422149478,1778623841000,-2129.0,0.00016999,2]
[422149482,1778623841000,-6453.0,0.00017231,2]
[422149480,1778623841000,-177.69,0.0001703,2]
[422149481,1778623841000,-1613.0,0.0001717,2]
[422149483,1778623841000,-634.72261672,0.00017322,2]
[422149485,1778623841000,-2080.17592889,0.00017441,2]
[422149484,1778623841000,-2000.0,0.00017407,2]
[422149487,1778623841000,-177.69,0.00017685,2]
[422149497,1778623841000,-168.91,0.00018305,2]
[422149495,1778623841000,-297.94099151,0.000182,2]
[422149496,1778623841000,-168.91,0.00018305,2]
[422149499,1778623841000,-500.0,0.00018411,2]
[422149486,1778623841000,-189.02,0.00017685,2]
[422149492,1778623841000,-1044.07566109,0.00018,2]
[422149493,1778623841000,-297.94099151,0.00018,2]
[422149491,1778623841000,-1205.66112139,0.00018,2]
[422149490,1778623841000,-155.0,0.00017999,2]
[422149494,1778623841000,-350.0,0.00018,2]
[422149500,1778623841000,-297.94099151,0.000185,2]
[422149501,1778623841000,-2236.95670848,0.00018537,2]
[422149498,1778623841000,-297.94099151,0.000184,2]
[422149502,1778623841000,-3596.0,0.00018647,2]
[422149507,1778623841000,-9035.0,0.00018954,2]
[422149504,1778623841000,-202.5,0.0001872,2]
[422149503,1778623841000,-297.94099151,0.000187,2]
[422149489,1778623841000,-2157.14243826,0.00017989,2]
[422149529,1778623841000,-500.0,0.00019178,2]
[422149513,1778623841000,-2319.72410669,0.00019085,2]
[422149547,1778623841000,-500.0,0.00019178,2]
[422149565,1778623841000,-150.432,0.00019467,2]
[422149564,1778623841000,-150.0,0.00019467,2]
[422149567,1778623841000,-150.0,0.00019467,2]
[422149566,1778623841000,-150.565,0.00019467,2]
[422149574,1778623841000,-150.919,0.00019467,2]
[422149569,1778623841000,-165.61,0.00019467,2]
[422149577,1778623841000,-205.89,0.00019967,2]
[422149575,1778623841000,-1269.0,0.00019467,2]
[422149581,1778623841000,-4833.95,0.00019968,2]
[422149580,1778623841000,-2254.66,0.00019968,2]
[422149578,1778623841000,-2509.12,0.00019968,2]
[422149576,1778623841000,-2405.55389864,0.00019633,2]
[422149568,1778623841000,-250.0,0.00019467,2]
[422149583,1778623841000,-13079.28491403,0.0002,2]
[422149589,1778623841000,-400.0,0.0002,2]
[422149587,1778623841000,-174.0,0.0002,2]
[422149586,1778623841000,-158.0,0.0002,2]
[422149585,1778623841000,-882.0,0.0002,2]